Cogmind - Beta 16 @@@ ROGUE MODE // 2025.11.20 @ 16:49:31 Player: shapeshifter Result: Assimilated 0b10! Performance ------------- Evolutions (9) 4500 Regions Visited (29) 5800 Robots Destroyed (195) 975 Value Destroyed (15452) 15452 Prototype IDs (53) 1060 Alien Tech Used (0) 0 Bonus (27498) 27498 TOTAL SCORE: 55285 Bonus ------- High Alert Combat Kills 1831 Follower Combat Kills 7282 Entered Garrisons 2000 Used RIF Installer 6000 Aligned with FarCom 300 Destroyed MAIN.C Guards 500 Met MAIN.C 5000 Used 0b10 Conduit 2000 Win 3000 Friendly Fire -415 Cogmind --------- Core Integrity 1237/1600 Matter 166/300 Energy 164/170 System Corruption 10% Temperature Cool (35) Movement Flying (20) Location 0b10 Command Parts ------- > --- POWER (2) -------- Light Antimatter Reactor > --- PROPULSION (8) --- Nuclear Pulse Array Nuclear Pulse Array Impulse Thruster Advanced Surge Thruster Impulse Thruster Array > --- UTILITY (11) ----- Lightpack 2.0 System Shield Relay Coupler [Grunt] (9) Relay Coupler [Behemoth] (11) Relay Coupler [Proto] (22) Relay Coupler [Proto] (21) Relay Coupler [Proto] (21) Relay Coupler [Proto] (22) > --- WEAPON (4) ------- Railgun Railgun Plasma Lance > --- INVENTORY (40) --- Improved Antigrav System Improved Antigrav System Antigrav Array Impulse Thruster Array Advanced Cooling System Long-range Terrain Scanner Improved Kinecellerator Advanced Weapon Cycler Experimental Reaction Control System Advanced Powered Armor Graphene Brace Improved Thermal Shield Advanced Point Defense System Relay Coupler [Demolisher] (45) Relay Coupler [Specialist] (32) KE Penetrator Gamma Bomb Array Fusion Bomb Launcher Advanced Remote Datajack Force Lance Peak State ------------ > --- POWER ------------ Light Deuterium Engine Light Antimatter Reactor > --- PROPULSION ------- Xenon Bombardment Thruster Xenon Bombardment Thruster Xenon Bombardment Thruster Impulse Thruster Advanced Surge Thruster Advanced Surge Thruster Impulse Thruster Array > --- UTILITY ---------- Lightpack 2.0 Relay Coupler [Grunt] Relay Coupler [Behemoth] Relay Coupler [Proto] Relay Coupler [Proto] Relay Coupler [Proto] Relay Coupler [Proto] Relay Coupler [Proto] Relay Coupler [Proto] > --- WEAPON ----------- KE Penetrator Railgun Advanced Remote Datajack Plasma Lance > --- INVENTORY -------- Light Antimatter Reactor Improved Antigrav System Improved Antigrav System Antigrav Array Nuclear Pulse Array Nuclear Pulse Array Advanced Surge Thruster Impulse Thruster Array Advanced Cooling System Long-range Terrain Scanner Improved Kinecellerator Advanced Weapon Cycler Experimental Reaction Control System Advanced Powered Armor Graphene Brace Improved Thermal Shield Advanced Point Defense System System Shield Relay Coupler [Demolisher] Relay Coupler [Specialist] KE Penetrator Railgun Railgun Gamma Bomb Array Fusion Bomb Launcher Advanced Remote Datajack Force Lance [Rating: 202] Favorites ----------- Power Light Deuterium Engine Engine Light Deuterium Engine Power Core Light Nuclear Core Reactor Light Quantum Reactor Propulsion Advanced Treads Treads Advanced Treads Hover Unit Improved Linear Gravjet Flight Unit Impulse Thruster Array Utility Large Storage Unit Device Improved Heat Sink Storage Large Storage Unit Processor Target Analyzer Hackware Relay Coupler [Grunt] Protection Hardened Medium Armor Plating Weapon Gauss Rifle Energy Gun Tesla Rifle Energy Cannon Heavy Plasma Cannon Ballistic Gun Gauss Rifle Ballistic Cannon Heavy Linear Accelerator Launcher Rocket Launcher Special Weapon Improved Remote Datajack Piercing Weapon Plasma Lance Special Melee Weapon Improved Datajack Build | -11 -10 -10 -9 -9 -9 -8 -8 -8 -8 -8 -7 -7 -7 -7 -6 -6 -6 -6 -5 -5 -4 -4 -3 -3 -3 -3 -2 -1 -1 ------- Run | Yrd Mat Min Mat Min Exi Min Mat Gar Mat Gar Fac Gar Fac Gar Fac Gar Fac Gar Fac Gar Fac Gar Res Gar Res Gar Res Acc Com Slots Evolved 18 | . . . 2 . . . 2 . . . 2 . . . 2 . . . 2 . 2 . 2 . . . 2 2 . Power 1 | . . . . . . . . . . . . . . . . . . . . . . . . . . . 1 . . Propulsion 6 | . . . . . . . 1 . . . . . . . . . . . 1 . . . 1 . . . 1 2 . Utility 9 | . . . . . . . 1 . . . 2 . . . 2 . . . 1 . 2 . 1 . . . . . . Weapon 2 | . . . 2 . . . . . . . . . . . . . . . . . . . . . . . . . . Parts Attached 259 | 7 1 . 20 . 2 1 2 13 10 4 4 12 14 16 9 18 6 20 3 14 . 13 11 4 . 11 13 17 14 Power 26 | 1 . . 2 . . 1 . 3 1 . . 2 2 2 . 1 1 . . 1 . 4 . 1 . . 1 2 1 Engine 10 | 1 . . 2 . . 1 . . 1 . . . 1 . . . 1 . . . . 2 . . . . 1 . . Core 9 | . . . . . . . . 3 . . . 1 1 2 . 1 . . . 1 . . . . . . . . . Reactor 7 | . . . . . . . . . . . . 1 . . . . . . . . . 2 . 1 . . . 2 1 Propulsion 56 | 2 . . 8 . . . 1 1 4 1 . 1 4 3 3 1 . 3 1 . . . 4 . . 2 6 7 4 Treads 18 | 2 . . 8 . . . 1 1 3 1 . 1 1 . . . . . . . . . . . . . . . . Leg . | . . . . . . . . . . . . . . . . . . . . . . . . . . . . . . Wheel . | . . . . . . . . . . . . . . . . . . . . . . . . . . . . . . Hover 20 | . . . . . . . . . 1 . . . 3 3 3 1 . 2 . . . . 3 . . 2 2 . . Flight 18 | . . . . . . . . . . . . . . . . . . 1 1 . . . 1 . . . 4 7 4 Utility 107 | 2 1 . 3 . . . 1 2 2 1 4 2 5 3 5 10 4 13 1 12 . 5 5 1 . 4 6 8 7 Device 16 | 1 . . . . . . . 1 1 . 1 1 . . . . . 2 . . . 3 1 . . 1 1 3 . Storage 5 | 1 1 . 1 . . . . . . . . . 2 . . . . . . . . . . . . . . . . Processor 5 | . . . . . . . . . . . 1 1 1 1 . . . . . . . . . . . . 1 . . Hackware 73 | . . . 1 . . . . . . . . . 1 2 5 10 4 11 1 12 . 2 4 1 . 3 4 5 7 Protection 8 | . . . 1 . . . 1 1 1 1 2 . 1 . . . . . . . . . . . . . . . . Artifact . | . . . . . . . . . . . . . . . . . . . . . . . . . . . . . . Weapon 70 | 2 . . 7 . 2 . . 7 3 2 . 7 3 8 1 6 1 4 1 1 . 4 2 2 . 5 . . 2 Energy Gun 2 | . . . . . . . . . . . . . 1 1 . . . . . . . . . . . . . . . Energy Cannon 3 | . . . . . . . . . . . . 1 . . . . . 1 . 1 . . . . . . . . . Ballistic Gun 51 | 2 . . 7 . 1 . . 5 2 2 . 5 1 6 1 6 1 1 . . . 2 2 2 . 3 . . 2 Ballistic Cannon 1 | . . . . . . . . . . . . 1 . . . . . . . . . . . . . . . . . Launcher 2 | . . . . . . . . 1 1 . . . . . . . . . . . . . . . . . . . . Special Weapon 8 | . . . . . . . . 1 . . . . 1 1 . . . 1 1 . . 2 . . . 1 . . . Impact Weapon . | . . . . . . . . . . . . . . . . . . . . . . . . . . . . . . Slashing Weapon . | . . . . . . . . . . . . . . . . . . . . . . . . . . . . . . Piercing Weapon 2 | . . . . . . . . . . . . . . . . . . 1 . . . . . . . 1 . . . Special Melee Weapon 1 | . . . . . 1 . . . . . . . . . . . . . . . . . . . . . . . . Unidentified Prototypes 7 | . . . . . . . . . 2 . . . . . . . 1 . . . . . . . . 2 . 1 1 Corrupted Parts 1 | . . . . . . . . . . . . . . . . . . . . . . . . . . . 1 . . System Corruption 8 | . . . . . . . . . . . . . . . . . . . . . . . . . . . 8 . . Parts Lost 64 | . . . 7 . . 1 . 1 1 1 . 3 10 7 1 1 . 3 . 2 . 2 3 . . 4 1 4 12 Power 15 | . . . 2 . . 1 . 1 1 . . . 1 1 . 1 . 1 . 1 . 2 . . . . . 1 2 Propulsion 17 | . . . 2 . . . . . . . . . 3 3 . . . . . . . . . . . 1 1 2 5 Utility 11 | . . . . . . . . . . . . 1 5 . . . . . . . . . 1 . . 1 . 1 2 Weapon 21 | . . . 3 . . . . . . 1 . 2 1 3 1 . . 2 . 1 . . 2 . . 2 . . 3 Highest Loss Streak 12 | . . . 4 . . 1 . 1 1 1 . 2 4 2 1 1 . 2 . 2 . 1 2 . . 3 1 3 12 To Critical Strikes 2 | . . . . . . 1 . . . . . 1 . . . . . . . . . . . . . . . . . Average Backups 22 | 3 5 6 13 15 12 13 12 12 12 12 12 12 12 19 32 34 35 34 35 37 38 36 33 39 38 38 36 35 26 Power 1 | 1 1 1 . . . . . . . . . . 1 2 3 1 1 . 1 1 2 1 2 3 3 3 3 2 . Propulsion 2 | 1 2 2 5 4 3 3 2 1 1 . . . 2 1 2 4 6 5 5 4 4 2 . 1 . 2 3 6 5 Utility 13 | . 1 1 4 7 4 7 6 7 7 9 10 10 7 11 19 18 17 19 20 22 23 24 24 27 29 27 24 19 13 Weapon 3 | . 1 1 2 2 3 3 3 2 3 2 1 . . 2 5 7 7 6 6 6 7 5 2 4 4 3 4 5 5 Tool/Special . | . . . . . . . . . . . . . . . . . . . . . . . . . . . . . . Unused Backups 161 | . . . 14 . 7 . . 2 4 5 . 6 3 3 3 15 5 14 1 8 . 17 3 19 4 7 2 5 14 Power 8 | . . . 2 . . . . . . . . . . 1 . 2 1 2 . . . . . . . . . . . Propulsion 26 | . . . 5 . 1 . . . 1 . . . . . 2 2 . 4 . 2 . 1 . 2 2 . 1 . 3 Utility 99 | . . . 5 . 6 . . 1 3 4 . 6 3 2 1 10 3 7 1 4 . 8 1 15 1 7 1 4 6 Weapon 23 | . . . 1 . . . . 1 . 1 . . . . . 1 1 1 . 1 . 8 1 1 1 . . 1 4 Tool/Special 5 | . . . 1 . . . . . . . . . . . . . . . . 1 . . 1 1 . . . . 1 Average Slot Usage (%) 85 | . 100 100 91 100 68 93 95 99 99 99 96 97 74 80 83 81 80 78 73 70 63 74 83 85 85 82 81 81 78 Engine 3 | . 14 14 7 11 11 5 9 3 8 9 7 . . . . . 5 4 . . . . . . . . 2 2 2 Core 2 | . . . . . . . . 5 . . . 2 6 6 6 6 . 1 5 4 5 1 . . . . . . . Treads 12 | . 28 28 21 22 22 22 24 26 26 27 23 23 17 . . . . . . . . . . . . . . . . Hover 5 | . . . . . . . . . . . . . 4 22 20 15 13 12 . . . . 17 19 19 18 13 . . Flight 2 | . . . . . . . . . . . . . . . . . . . 10 11 10 10 . . . . 5 24 24 Device 4 | . 14 14 . . . . . 3 8 9 8 15 8 . . . . 5 5 2 . 7 7 4 4 3 1 5 3 Storage 7 | . 14 14 11 11 11 11 9 9 9 9 7 7 7 7 6 6 6 6 5 5 5 5 4 4 4 4 4 4 4 Processor 2 | . . . . . . . . . . . 6 11 10 12 1 . . . . . . . . . . . . . . Hackware 11 | . . . 7 . . . . . . . . . 2 1 22 25 26 20 20 25 26 27 28 33 33 32 30 24 26 Protection 3 | . . . 3 11 11 11 15 13 9 9 10 3 2 . . . . . . . . . . . . . . . . Ballistic Gun 22 | . 28 28 39 44 3 44 36 35 36 35 30 25 4 24 15 18 20 18 17 10 5 11 14 11 9 9 8 8 7 Special Weapon 2 | . . . . . . . . . . . . . 2 1 6 6 6 6 5 5 5 5 4 3 4 4 4 4 2 Peak Build Rating 202 | 7 7 8 21 21 25 23 29 45 46 44 51 64 73 87 97 109 108 120 131 140 131 153 158 161 161 175 179 195 202 Average Rating 77 | 5 7 7 14 21 17 22 27 35 42 41 48 55 53 77 92 104 103 108 130 129 131 146 153 159 160 169 172 178 180 On Entrance 83 | . 7 7 8 21 21 23 23 29 45 41 44 51 59 73 87 96 108 104 118 131 131 131 150 157 161 161 173 167 179 Avg Prop Armor Cover (%) 7 | . . . . . . . . . . . . . 7 . . . . . . . . . . . . . . . . Naked Turns . | . . . . . . . . . . . . . . . . . . . . . . . . . . . . . . Heaviest Build 72 | 13 28 28 41 41 41 41 49 55 50 52 60 71 72 29 26 29 29 34 32 32 31 45 49 50 50 50 46 47 44 Greatest Support 72 | 40 40 40 42 42 42 42 62 70 70 66 66 72 72 29 30 29 31 37 32 32 32 44 68 56 56 60 70 55 56 Greatest Overweight (x) 1 | . . . 1 . . . . 1 1 . . . 1 1 . . . . . . . 1 . . . 1 . . . Average Overweight (x) . | . . . . . . . . . . . . . . . . . . . . . . . . . . . . . . Largest Inventory Capacity 40 | 8 15 15 15 15 15 15 15 15 15 15 15 15 40 40 40 40 40 40 40 40 40 40 40 40 40 40 40 40 40 Average Capacity 26 | 7 12 15 15 15 15 15 15 15 15 15 15 15 16 40 40 40 40 40 40 40 40 40 40 40 40 40 40 40 40 Most Carried 40 | 6 7 8 15 15 15 15 15 15 15 15 15 15 15 35 40 40 40 40 38 40 40 40 37 40 40 40 40 40 38 Average Carried 23 | 3 5 6 13 14 12 15 14 14 14 14 14 14 14 19 35 38 37 36 36 38 39 37 33 39 38 39 38 37 29 Final Capacity 40 | 8 15 15 15 15 15 15 15 15 15 15 15 15 40 40 40 40 40 40 40 40 40 40 40 40 40 40 40 40 40 Final Carried 40 | 5 6 8 15 15 15 15 14 15 15 15 15 15 13 35 39 40 35 38 36 39 40 38 37 40 39 40 37 40 22 Class Distribution -------------------- 26% | Botlord-Skirmisher 10% | Gunner 9% | Botlord-Sprinter 9% | Scavenger-Skirmisher 9% | Mutant 7% | Tank 7% | Skirmisher 4% | Bothacker-Gunner 4% | Botlord-Mutant Dominant Class ---------------- Mutant | -10/Materials Mutant | -10/Mines Gunner | -9/Materials Tank | -9/Mines Mutant | -9/Exiles Skirmisher | -8/Mines Tank | -8/Materials Tank | -8/Garrison Scavenger-Skirmisher | -8/Materials Skirmisher | -8/Garrison Commander-Tank | -7/Factory Commander-Gunner | -7/Garrison Gunner | -7/Factory Bothacker-Gunner | -7/Garrison Botlord-Skirmisher | -6/Factory Botlord-Skirmisher | -6/Garrison Botlord-Skirmisher | -6/Factory Botlord-Skirmisher | -6/Garrison Botlord-Skirmisher | -5/Factory Botlord-Skirmisher | -5/Garrison Botlord-Mutant | -4/Factory Botlord-Skirmisher | -4/Garrison Botlord-Sprinter | -3/Research Botlord-Sprinter | -3/Garrison Botlord-Sprinter | -3/Research Botlord-Skirmisher | -3/Garrison Botlord-Skirmisher | -2/Research Botlord-Sprinter | -1/Access Botlord-Sprinter | -1/Command Resources | -11 -10 -10 -9 -9 -9 -8 -8 -8 -8 -8 -7 -7 -7 -7 -6 -6 -6 -6 -5 -5 -4 -4 -3 -3 -3 -3 -2 -1 -1 ----------- Run | Yrd Mat Min Mat Min Exi Min Mat Gar Mat Gar Fac Gar Fac Gar Fac Gar Fac Gar Fac Gar Fac Gar Res Gar Res Gar Res Acc Com Matter Collected 14553 | 282 . . 891 9 136 101 61 1344 487 572 72 456 1206 1365 344 869 212 1341 . 1017 . 944 383 328 44 654 600 517 318 Remotely . | . . . . . . . . . . . . . . . . . . . . . . . . . . . . . . Salvage Created 8521 | 48 . . 1303 33 . 243 . 847 281 559 . 606 841 1204 . 197 . 1391 . 48 . 155 91 193 . 60 . 103 318 Parts 469 | 7 . . 95 2 . 26 . 46 20 37 . 22 46 62 . 14 . 56 . 2 . 5 7 6 . 1 . 4 11 Haulers Intercepted 4 | . . . 2 . . . . . 2 . . . . . . . . . . . . . . . . . . . . Recyclers Shooed 3 | . . . 3 . . . . . . . . . . . . . . . . . . . . . . . . . . Parts Field Recycled . | . . . . . . . . . . . . . . . . . . . . . . . . . . . . . . Retrieved Matter . | . . . . . . . . . . . . . . . . . . . . . . . . . . . . . . Parts Self-Destructed . | . . . . . . . . . . . . . . . . . . . . . . . . . . . . . . Prevented . | . . . . . . . . . . . . . . . . . . . . . . . . . . . . . . Parts Restored . | . . . . . . . . . . . . . . . . . . . . . . . . . . . . . . Kills | -11 -10 -10 -9 -9 -9 -8 -8 -8 -8 -8 -7 -7 -7 -7 -6 -6 -6 -6 -5 -5 -4 -4 -3 -3 -3 -3 -2 -1 -1 ------- Run | Yrd Mat Min Mat Min Exi Min Mat Gar Mat Gar Fac Gar Fac Gar Fac Gar Fac Gar Fac Gar Fac Gar Res Gar Res Gar Res Acc Com Combat Hostiles Destroyed 167 | . . . 23 2 . 16 . 20 3 14 . 12 23 28 . 6 . 12 . 2 . 2 1 . . 1 . . 2 Melee 2 | . . . . . . . . . . . . . . . . . . . . . . . . . . . . . 2 Guns 147 | . . . 23 2 . 16 . 20 3 14 . 12 5 28 . 6 . 12 . 2 . 2 1 . . 1 . . . Cannons 18 | . . . . . . . . . . . . . 18 . . . . . . . . . . . . . . . . Classes Destroyed 17 | 1 . . 7 1 . . . 4 . . . . 3 . . . . 1 . . . . . . . . . . . Worker 5 | . . . . . . . . . . . . . 3 . . . . . . . . . . . . . . . 2 Builder 5 | . . . 2 . . . . . 1 . . . 1 . . . . . . . . . 1 . . . . . . Tunneler 3 | 3 . . . . . . . . . . . . . . . . . . . . . . . . . . . . . Hauler 4 | . . . 2 . . . . . 2 . . . . . . . . . . . . . . . . . . . . Recycler 4 | . . . 1 . . . . . . . . . 2 . . . . . . . . . . . . . . 1 . Watcher 5 | . . . 3 . . . . . . . . . 1 1 . . . . . . . . . . . . . . . Swarmer 51 | . . . . 2 . 16 . 3 . 3 . 7 2 7 . 4 . 4 . 2 . . . 1 . . . . . Cutter 2 | . . . . . . . . 1 . . . . . . . . . 1 . . . . . . . . . . . Grunt 57 | . . . 15 . . . . 8 . 7 . 3 10 11 . . . 1 . . . . 1 . . 1 . . . Brawler 6 | . . . . . . . . 3 . . . 1 1 . . . . 1 . . . . . . . . . . . Duelist 5 | . . . 1 . . . . 1 . 1 . . 1 1 . . . . . . . . . . . . . . . Protector 1 | . . . . . . . . . . . . . 1 . . . . . . . . . . . . . . . . Sentry 24 | . . . 7 . . . . 1 1 2 . 1 4 6 . . . 1 . . . 1 . . . . . . . Demolisher 1 | . . . . . . . . 1 . . . . . . . . . . . . . . . . . . . . . Hunter 7 | . . . . . . . . 2 2 1 . . 2 . . . . . . . . . . . . . . . . Programmer 11 | . . . . . . . . . . . . . 2 3 . 2 . 3 . . . 1 . . . . . . . Behemoth 1 | . . . . . . . . . . . . . . . . . . 1 . . . . . . . . . . . Combat Programmer 2 | . . . . . . . . . . . . . . . . . . . . . . . . . . . . . 2 Thug 1 | . . . 1 . . . . . . . . . . . . . . . . . . . . . . . . . . Best Kill Streak 7 | 2 . . 4 2 . 4 . 4 3 7 . 3 6 4 . 4 . 5 . 2 . 1 1 . . 1 . 1 2 Combat Bots Only 7 | . . . 3 2 . 4 . 4 2 7 . 3 4 4 . 4 . 5 . 2 . 1 1 . . 1 . . 1 Max Kills in Single Turn 2 | 1 . . 2 1 . 2 . 1 1 2 . 1 2 2 . 2 . 1 . 1 . 1 1 1 . 1 . 1 1 Gunslinging 1 | . . . 1 . . 1 . . . . . . . . . . . . . . . . . . . . . . . Exploded . | . . . . . . . . . . . . . . . . . . . . . . . . . . . . . . Melee 1 | . . . . . . . . . . . . . . . . . . . . . . . . . . . . . 1 Uniques/NPCs Destroyed . | . . . . . . . . . . . . . . . . . . . . . . . . . . . . . . Combat | -11 -10 -10 -9 -9 -9 -8 -8 -8 -8 -8 -7 -7 -7 -7 -6 -6 -6 -6 -5 -5 -4 -4 -3 -3 -3 -3 -2 -1 -1 -------- Run | Yrd Mat Min Mat Min Exi Min Mat Gar Mat Gar Fac Gar Fac Gar Fac Gar Fac Gar Fac Gar Fac Gar Res Gar Res Gar Res Acc Com Hostile Shots Fired 1188 | . 20 . 112 5 . 38 . 79 12 42 19 93 189 167 5 76 14 76 . 37 . 43 23 . 5 58 16 21 38 Missed 419 | . 7 . 30 3 . 14 . 22 2 11 6 28 57 57 1 33 6 38 . 18 . 18 11 . 2 22 8 11 14 Hits 769 | . 13 . 82 2 . 24 . 57 10 31 13 65 132 110 4 43 8 38 . 19 . 25 12 . 3 36 8 10 24 Melee 16 | . . . . . . . . 13 . . . . 1 . . . . . . . . 1 . . . . 1 . . Projectile 753 | . 13 . 82 2 . 24 . 44 10 31 13 65 131 110 4 43 8 38 . 19 . 24 12 . 3 36 7 10 24 AOE 7 | . . . . . . . . 5 . . . . . . . . . 2 . . . . . . . . . . . Critical Strikes 33 | . . . . . . 1 . 9 . 1 . 1 2 5 . . . 2 . 2 . 2 . . . 2 1 . 5 Part Disruptions 1 | . . . . . . . . . . . . . . . . . . . . . . . . . . . . . 1 Damage Taken 12504 | . 124 22 1078 16 . 189 . 1139 139 535 125 928 1568 1185 133 458 137 675 . 412 . 553 301 32 67 911 323 401 1053 Core 1735 | . 29 . 112 . . 13 . 33 . 24 6 78 180 190 19 82 22 112 . 95 . 83 27 . 23 217 27 109 254 Absorbed by Shields 142 | . . . . . . . . . . . . . . 69 . 19 . . . 14 . . . . . . . . 40 Core Remaining (%) 80 | 100 . 88 . . . 68 . . . 89 . . . 35 . . . 72 . 90 . 92 . . . 79 98 . 77 Volleys Fired 1096 | 10 3 2 91 2 . 13 . 70 8 41 2 41 72 90 20 62 23 128 2 96 . 95 23 38 16 41 50 51 6 Largest 4 | 2 2 2 4 4 . 4 . 4 4 4 4 4 3 4 3 3 1 3 1 3 . 3 3 1 2 3 2 2 2 Hottest 171 | 40 40 40 89 89 . 89 . 112 112 116 116 171 161 116 116 99 33 114 7 106 . 108 106 35 70 105 68 68 70 Shots Fired 2162 | 20 6 4 325 8 . 51 . 247 32 112 8 108 91 257 23 88 23 252 2 108 . 129 35 38 17 57 58 55 8 Gun 1740 | 20 6 4 325 8 . 51 . 244 32 112 8 103 33 254 5 59 1 210 . 61 . 109 18 14 2 33 16 8 4 Cannon 71 | . . . . . . . . . . . . 5 56 . . . . 10 . . . . . . . . . . . Launcher 3 | . . . . . . . . 3 . . . . . . . . . . . . . . . . . . . . . Special 348 | . . . . . . . . . . . . . 2 3 18 29 22 32 2 47 . 20 17 24 15 24 42 47 4 Kinetic 1766 | 20 6 4 325 8 . 51 . 244 32 112 8 103 76 245 4 52 1 210 . 61 . 109 18 14 2 33 16 8 4 Thermal 18 | . . . . . . . . . . . . 5 13 . . . . . . . . . . . . . . . . Explosive 3 | . . . . . . . . 3 . . . . . . . . . . . . . . . . . . . . . Electromagnetic 27 | . . . . . . . . . . . . . . 9 1 7 . 10 . . . . . . . . . . . Robot Hit Streak 36 | 5 3 2 24 3 . 9 . 10 6 9 2 12 11 10 9 11 9 24 26 36 . 14 6 11 6 13 11 10 6 Robot Miss Streak 14 | 3 1 2 3 1 . 4 . 3 2 2 5 4 8 14 2 6 2 3 . 4 . 2 3 1 2 5 2 4 1 Penetration Max 1 | . . . . . . . . . . 1 . 1 1 1 . . . 1 . . . 1 1 . . . . . . Secondary Targets 30 | . . . 3 1 . 10 . 4 . 3 . 4 . 2 . . . 2 . 1 . . . . . . . . . Max Gunslinging Chain 2 | . . . 1 1 . 2 . 1 . 1 . 1 . 1 . . . 1 . 1 . . . . . . . . . Shots Hit Robots 1242 | 10 4 2 207 6 4 30 . 123 17 64 2 60 65 134 19 41 18 150 2 45 . 48 23 29 11 29 38 35 26 Core Hits 468 | 6 1 1 81 2 . 18 . 47 8 30 . 28 41 93 4 6 . 63 . 2 . 12 2 7 1 4 3 . 8 Critical Kills 15 | . . . 1 . . . . . . . . 5 . 2 . 1 . 3 . . . 2 1 . . . . . . Critical Parts Destroyed 32 | . . . 1 . . . . . 1 2 . 6 . 4 . . . 13 . 2 . 1 2 . . . . . . Critical Strikes 51 | . . . 2 . . . . . 1 2 . 11 2 6 . 1 . 17 . 2 . 4 3 . . . . . . Destroy 49 | . . . 2 . . . . . 1 2 . 11 . 6 . 1 . 17 . 2 . 4 3 . . . . . . Blast 2 | . . . . . . . . . . . . . 2 . . . . . . . . . . . . . . . . Melee Attacks 94 | . . . . . 4 . . . . . . . . . . . . 1 . 10 . 10 . 19 . 6 2 17 25 Impact . | . . . . . . . . . . . . . . . . . . . . . . . . . . . . . . Slashing . | . . . . . . . . . . . . . . . . . . . . . . . . . . . . . . Piercing 90 | . . . . . . . . . . . . . . . . . . 1 . 10 . 10 . 19 . 6 2 17 25 Sneak Attacks 9 | . . . . . 4 . . . . . . . . . . . . . . . . . . 2 . . . 1 2 Combat Hostiles . | . . . . . . . . . . . . . . . . . . . . . . . . . . . . . . Follow-up Attacks . | . . . . . . . . . . . . . . . . . . . . . . . . . . . . . . Damage Inflicted 22167 | 81 37 20 1924 77 . 421 . 2017 302 1382 40 1338 3948 2734 88 417 26 3222 . 155 . 811 184 893 36 401 180 162 1271 Guns 16420 | 81 37 20 1924 77 . 421 . 2017 302 1382 40 1307 443 2734 88 417 26 3222 . 155 . 811 184 27 36 401 180 21 67 Cannons 3517 | . . . . . . . . . . . . 31 3486 . . . . . . . . . . . . . . . . Explosions . | . . . . . . . . . . . . . . . . . . . . . . . . . . . . . . Melee 2145 | . . . . . . . . . . . . . . . . . . . . . . . . 800 . . . 141 1204 Ramming 85 | . . . . . . . . . . . . . 19 . . . . . . . . . . 66 . . . . . Kinetic 19695 | 81 37 20 1924 77 . 421 . 2017 302 1382 40 1307 3784 2691 65 417 26 3222 . 155 . 811 184 27 36 401 180 21 67 Thermal 176 | . . . . . . . . . . . . 31 145 . . . . . . . . . . . . . . . . Explosive . | . . . . . . . . . . . . . . . . . . . . . . . . . . . . . . Electromagnetic 66 | . . . . . . . . . . . . . . 43 23 . . . . . . . . . . . . . . Impact . | . . . . . . . . . . . . . . . . . . . . . . . . . . . . . . Slashing . | . . . . . . . . . . . . . . . . . . . . . . . . . . . . . . Piercing 2145 | . . . . . . . . . . . . . . . . . . . . . . . . 800 . . . 141 1204 Highest Corruption 10 | . . . 2 2 2 2 . 2 2 2 . . 4 8 . . . . . . . 3 . . 1 2 8 . 10 Average Corruption 3 | . . . 2 2 2 2 . 2 2 2 . . 2 7 . . . . . . . 2 . . 1 1 8 . 9 Corruption Purged . | . . . . . . . . . . . . . . . . . . . . . . . . . . . . . . Corruption Blocked . | . . . . . . . . . . . . . . . . . . . . . . . . . . . . . . Effects 196 | . . . 15 2 13 7 . 5 14 17 . . 17 67 . . . . . . . 17 . . 3 8 4 . 7 Message Errors 41 | . . . 1 . 1 2 . 2 4 5 . . 5 15 . . . . . . . 1 . . 1 2 . . 2 Matter Fused 60 | . . . 8 2 3 . . 2 5 2 . . 3 18 . . . . . . . 8 . . 1 2 2 . 4 Heat Flow Errors 21 | . . . . . 2 1 . . 1 1 . . 2 8 . . . . . . . 3 . . . 1 2 . . Energy Discharges 15 | . . . 2 . 1 . . 1 1 2 . . . 7 . . . . . . . 1 . . . . . . . Parts Rejected 6 | . . . . . . 1 . . . 1 . . 2 1 . . . . . . . . . . . . . . 1 Parts Fused 2 | . . . . . . . . . . 1 . . . 1 . . . . . . . . . . . . . . . Data Loss (minor) 24 | . . . 2 . 4 2 . . 1 1 . . 2 10 . . . . . . . 2 . . . . . . . Data Loss (major) 7 | . . . 1 . 1 . . . . 1 . . . 1 . . . . . . . . . . 1 2 . . . Misfires 6 | . . . 1 . . . . . 1 1 . . . 2 . . . . . . . 1 . . . . . . . Alerts 6 | . . . . . 1 . . . 1 1 . . . 2 . . . . . . . . . . . 1 . . . Weapon Failures 8 | . . . . . . 1 . . . 1 . . 3 2 . . . . . . . 1 . . . . . . . Overload Shots . | . . . . . . . . . . . . . . . . . . . . . . . . . . . . . . Overflow Damage 910 | . . . . . . . . . . . . . 673 . . . . . . . . . . 27 . . . 198 12 Projectiles 673 | . . . . . . . . . . . . . 673 . . . . . . . . . . . . . . . . Explosions 87 | . . . . . . . . . . . . . . . . . . . . . . . . . . . . 87 . Melee 150 | . . . . . . . . . . . . . . . . . . . . . . . . 27 . . . 111 12 Knockbacks 14 | . . . . . . . . . . . . . 14 . . . . . . . . . . . . . . . . Impact . | . . . . . . . . . . . . . . . . . . . . . . . . . . . . . . Kinetic 13 | . . . . . . . . . . . . . 13 . . . . . . . . . . . . . . . . Secondary 1 | . . . . . . . . . . . . . 1 . . . . . . . . . . . . . . . . Self-Inflicted Damage 172 | . . . . . . . . 26 . . . . . . . . . . . . . . . 32 . . . 114 . Shots 2 | . . . . . . . . 1 . . . . . . . . . . . . . . . . . . . 1 . Rammed 4 | . . . . . . . . . . . . . 1 . . . . . . . . . . 3 . . . . . Targets Rammed 4 | . . . . . . . . . . . . . 1 . . . . . . . . . . 3 . . . . . Kicked . | . . . . . . . . . . . . . . . . . . . . . . . . . . . . . . Crushed . | . . . . . . . . . . . . . . . . . . . . . . . . . . . . . . Highest Temperature 455 | . . . 192 66 163 218 . 316 455 163 18 57 263 333 62 42 . 251 . 81 . 304 40 6 5 42 128 296 192 Average Temperature 67 | . . . 44 36 85 63 . 96 197 25 10 19 69 92 35 16 . 65 . 32 . 90 23 3 3 17 19 88 62 Received Heat Transfer 2629 | . 36 . 390 . . . . 351 9 162 36 114 537 336 18 75 48 93 . 120 . 166 27 . . 48 27 27 9 Effects 10 | . . . . . . . . . 4 . . . . 2 . . . 4 . . . . . . . . . . . Shutdowns 2 | . . . . . . . . . 1 . . . . 1 . . . . . . . . . . . . . . . Energy Bleed 2 | . . . . . . . . . . . . . . 1 . . . 1 . . . . . . . . . . . Interference 6 | . . . . . . . . . 3 . . . . . . . . 3 . . . . . . . . . . . Siege Activations . | . . . . . . . . . . . . . . . . . . . . . . . . . . . . . . Martial Activations . | . . . . . . . . . . . . . . . . . . . . . . . . . . . . . . Shielding Activations . | . . . . . . . . . . . . . . . . . . . . . . . . . . . . . . Robots Disrupted . | . . . . . . . . . . . . . . . . . . . . . . . . . . . . . . Combat Hostiles . | . . . . . . . . . . . . . . . . . . . . . . . . . . . . . . Robots Corrupted . | . . . . . . . . . . . . . . . . . . . . . . . . . . . . . . Combat Hostiles . | . . . . . . . . . . . . . . . . . . . . . . . . . . . . . . Parts Fried . | . . . . . . . . . . . . . . . . . . . . . . . . . . . . . . Impact Corruptions 1 | . . . . . . . . . . . . . 1 . . . . . . . . . . . . . . . . Robots Melted . | . . . . . . . . . . . . . . . . . . . . . . . . . . . . . . Combat Hostiles . | . . . . . . . . . . . . . . . . . . . . . . . . . . . . . . Parts Melted 3 | . . . 1 . . . . . . . . 2 . . . . . . . . . . . . . . . . . Heat Transferred 327 | . . . . . . . . . . . . 50 277 . . . . . . . . . . . . . . . . Parts Sabotaged . | . . . . . . . . . . . . . . . . . . . . . . . . . . . . . . Parts Stolen . | . . . . . . . . . . . . . . . . . . . . . . . . . . . . . . Parts Stripped . | . . . . . . . . . . . . . . . . . . . . . . . . . . . . . . Power Chain Reactions . | . . . . . . . . . . . . . . . . . . . . . . . . . . . . . . Alert | -11 -10 -10 -9 -9 -9 -8 -8 -8 -8 -8 -7 -7 -7 -7 -6 -6 -6 -6 -5 -5 -4 -4 -3 -3 -3 -3 -2 -1 -1 ------- Run | Yrd Mat Min Mat Min Exi Min Mat Gar Mat Gar Fac Gar Fac Gar Fac Gar Fac Gar Fac Gar Fac Gar Res Gar Res Gar Res Acc Com Maximum Alert Level 5 | . . . 1 . . 1 . 3 2 2 1 4 3 4 3 5 3 3 2 3 2 2 2 2 1 1 . . . Low Security (%) 28 | 100 100 100 60 100 . 78 100 32 34 23 11 . . . . . . 3 . . . . . 4 . 61 100 100 100 Level 1 22 | . . . 39 . . 21 . 14 44 28 88 13 . 6 . . 57 6 . 14 14 44 85 27 100 38 . . . Level 2 27 | . . . . . . . . 17 20 48 . 24 61 51 13 25 33 35 100 41 85 55 14 68 . . . . . Level 3 16 | . . . . . . . . 34 . . . 17 38 21 86 4 9 55 . 44 . . . . . . . . . Level 4 6 | . . . . . . . . . . . . 44 . 19 . 58 . . . . . . . . . . . . . Level 5 . | . . . . . . . . . . . . . . . . 12 . . . . . . . . . . . . . High Security . | . . . . . . . . . . . . . . . . . . . . . . . . . . . . . . Max Security . | . . . . . . . . . . . . . . . . . . . . . . . . . . . . . . Peak Influence 1669 | 5 . 65 286 147 . 226 65 996 485 665 348 1307 879 1573 825 1669 877 945 495 842 441 620 430 581 374 356 147 49 17 Initial 875 | . . . 17 97 . . 65 9 485 48 348 221 686 394 825 478 875 136 495 287 441 273 348 155 326 246 69 . . Average 450 | . . 11 133 108 . 160 41 466 270 395 269 888 679 768 751 1139 463 692 455 630 416 426 320 445 314 162 45 6 1 Influence Increases 12500 | 15 . 127 875 50 . 376 . 1037 125 627 199 1236 766 1289 48 1341 63 1159 25 695 . 587 379 426 152 218 425 176 84 Destroy 0b10 Robot/C 5060 | . . 80 580 40 . 320 . 500 60 380 80 580 500 560 . 480 . 375 . 75 . 135 135 . 45 45 60 . 30 Destroy 0b10 Robot/NC 213 | 15 . . 55 . . . . . 15 . . 10 40 5 . . 5 32 . . . . 12 8 . . . 4 12 Destroy Leader 664 | . . 20 164 10 . 50 . 20 34 30 30 50 122 30 . 30 . 26 . 8 . . 16 . 16 . 8 . . Allied During Kill 1613 | . . 27 26 . . . . 16 . 22 66 336 16 . . 368 3 208 . 71 . 135 138 7 61 45 68 . . Successful Hack 365 | . . . 20 . . 6 . 42 15 14 8 . 31 14 32 7 16 18 25 22 . . 14 22 4 16 5 34 . Disable Machine 420 | . . . . . . . . 30 . . 15 30 45 15 . 60 30 75 . 24 . 12 12 . . . 36 36 . Anti-Garrison Action 2737 | . . . . . . . . 350 . 100 . 150 . 450 . 300 . 289 . 341 . 227 . 341 . 76 113 . . Destroy Structure 1032 | . . . . . . . . 79 1 66 . 65 12 50 1 81 9 79 . 154 . 78 16 48 14 36 135 90 18 Partial Spotted 78 | . . . . . . . . . . . . . . 30 . . . . . . . . 12 . . . . 12 24 Lose Combat Pursuer 318 | . . . 30 . . . . . . 15 . 15 . 135 15 15 . 57 . . . . 24 . 12 . . . . Influence Decreases 12500 | 15 . 81 671 233 67 208 153 56 1047 36 547 246 1509 280 938 355 1537 409 560 263 451 358 792 52 405 422 549 176 84 Entered New Map 5713 | . . . 29 153 67 . 103 6 511 26 317 96 621 170 748 205 794 59 450 123 401 118 272 52 255 82 55 . . Time Decay 3190 | 15 . 81 522 80 . 198 50 . 526 . 190 . 428 . 180 . 198 . 90 . 50 . 150 . 110 . 168 100 54 Lost Part 497 | . . . 60 . . 10 . 10 10 10 . 30 100 70 10 10 . 30 . 20 . 20 30 . . 40 10 12 15 Lost Ally 2375 | . . . 60 . . . . 40 . . 40 120 60 40 . 140 120 320 20 120 . 220 340 . 40 300 316 64 15 Purge Threat 725 | . . . . . . . . . . . . . 300 . . . 425 . . . . . . . . . . . . Squads Dispatched 47 | . 1 . 4 . . . . . . . 6 . 10 . 3 . 4 . . . . . 4 . 2 . 8 4 1 Investigation 10 | . . . 2 . . . . . . . 1 . 2 . 2 . 2 . . . . . . . . . 1 . . Extermination 9 | . . . . . . . . . . . 1 . 2 . 1 . 1 . . . . . . . . . 1 2 1 Reinforcement 13 | . 1 . 2 . . . . . . . 2 . 1 . . . . . . . . . 3 . . . 3 1 . Assault 3 | . . . . . . . . . . . . . 1 . . . . . . . . . . . . . 2 . . Garrison 12 | . . . . . . . . . . . 2 . 4 . . . 1 . . . . . 1 . 2 . 1 1 . Intercept . | . . . . . . . . . . . . . . . . . . . . . . . . . . . . . . Searches Triggered . | . . . . . . . . . . . . . . . . . . . . . . . . . . . . . . Construction Impeded 2 | . . . . . . . . . . . . . . . . . . . . . . . 2 . . . . . . Haulers Reinforced 1 | . . . . . . . . . . . . . . . . . . . . . . . 1 . . . . . . Active Scanning Responses . | . . . . . . . . . . . . . . . . . . . . . . . . . . . . . . Cargo Convoy Interrupts . | . . . . . . . . . . . . . . . . . . . . . . . . . . . . . . Alert ID Control Effect 126 | . . . . . . . . . . . . . . . 3 7 8 8 1 26 . 16 6 . 7 18 14 11 1 Stealth | -11 -10 -10 -9 -9 -9 -8 -8 -8 -8 -8 -7 -7 -7 -7 -6 -6 -6 -6 -5 -5 -4 -4 -3 -3 -3 -3 -2 -1 -1 --------- Run | Yrd Mat Min Mat Min Exi Min Mat Gar Mat Gar Fac Gar Fac Gar Fac Gar Fac Gar Fac Gar Fac Gar Res Gar Res Gar Res Acc Com Distress Signals 14 | . 2 . 4 . . . . . 1 . . . 2 1 . . . . . . . . . . 2 . 1 1 . Communications Jammed . | . . . . . . . . . . . . . . . . . . . . . . . . . . . . . . Distress Signals . | . . . . . . . . . . . . . . . . . . . . . . . . . . . . . . Times Spotted 494 | . 7 2 45 4 . 14 . 23 4 15 4 29 31 37 11 34 8 34 . 51 . 22 21 . 13 23 37 22 3 Peak Tracking Total 9 | . 7 2 4 3 . 4 . 3 2 4 3 8 6 5 3 6 3 4 . 7 . 5 6 . 5 5 7 9 2 Tactical Retreats 15 | . . . 2 . . . . . . 1 . 1 . 4 1 1 . 3 . . . . 1 . 1 . . . . Traps | -11 -10 -10 -9 -9 -9 -8 -8 -8 -8 -8 -7 -7 -7 -7 -6 -6 -6 -6 -5 -5 -4 -4 -3 -3 -3 -3 -2 -1 -1 ------- Run | Yrd Mat Min Mat Min Exi Min Mat Gar Mat Gar Fac Gar Fac Gar Fac Gar Fac Gar Fac Gar Fac Gar Res Gar Res Gar Res Acc Com Traps Triggered 48 | . . . 3 . . . . . 1 1 . . 5 12 1 5 . 2 . 5 . 8 . 2 1 1 . 1 . Indirectly . | . . . . . . . . . . . . . . . . . . . . . . . . . . . . . . Trap Hack Attempts . | . . . . . . . . . . . . . . . . . . . . . . . . . . . . . . Triggered . | . . . . . . . . . . . . . . . . . . . . . . . . . . . . . . Disarmed . | . . . . . . . . . . . . . . . . . . . . . . . . . . . . . . Reprogrammed . | . . . . . . . . . . . . . . . . . . . . . . . . . . . . . . Reused . | . . . . . . . . . . . . . . . . . . . . . . . . . . . . . . Traps Extracted . | . . . . . . . . . . . . . . . . . . . . . . . . . . . . . . Installed . | . . . . . . . . . . . . . . . . . . . . . . . . . . . . . . Triggered . | . . . . . . . . . . . . . . . . . . . . . . . . . . . . . . Machines | -11 -10 -10 -9 -9 -9 -8 -8 -8 -8 -8 -7 -7 -7 -7 -6 -6 -6 -6 -5 -5 -4 -4 -3 -3 -3 -3 -2 -1 -1 ---------- Run | Yrd Mat Min Mat Min Exi Min Mat Gar Mat Gar Fac Gar Fac Gar Fac Gar Fac Gar Fac Gar Fac Gar Res Gar Res Gar Res Acc Com Machines Disabled 76 | . . . . . . . . 5 . 2 1 4 3 4 . 12 2 11 . 8 . 6 1 7 . 3 4 3 . Max in Single Turn 2 | . . . . . . . . 1 . 1 . 1 1 1 . 1 . 2 . 1 . 1 . 1 . 1 1 1 . Garrison Access 1 | . . . . . . . . . . . . . . . . . . . . . . . . . . . 1 . . Garrison Relay 40 | . . . . . . . . 3 . 2 . 2 . 3 . 6 . 5 . 6 . 4 . 7 . 2 . . . Energy Cycler 1 | . . . . . . . . . . . . . . . . . . . . . . . . . . . . 1 . Machines Repaired . | . . . . . . . . . . . . . . . . . . . . . . . . . . . . . . Machines Dismantled 1 | . . . . . . . . 1 . . . . . . . . . . . . . . . . . . . . . Machines Sabotaged . | . . . . . . . . . . . . . . . . . . . . . . . . . . . . . . Overloaded Fab Kills . | . . . . . . . . . . . . . . . . . . . . . . . . . . . . . . Hacking | -11 -10 -10 -9 -9 -9 -8 -8 -8 -8 -8 -7 -7 -7 -7 -6 -6 -6 -6 -5 -5 -4 -4 -3 -3 -3 -3 -2 -1 -1 --------- Run | Yrd Mat Min Mat Min Exi Min Mat Gar Mat Gar Fac Gar Fac Gar Fac Gar Fac Gar Fac Gar Fac Gar Res Gar Res Gar Res Acc Com Machines Accessed 98 | . . 1 10 . 2 1 1 3 10 3 3 3 9 4 8 2 5 3 4 3 2 . 3 2 3 3 4 4 2 Terminals 62 | . . . 9 . . 1 . 3 6 3 1 3 2 4 2 2 3 3 1 3 . . 2 2 1 3 4 2 2 Fabricators 6 | . . . . . . . . . . . . . 2 . 3 . . . 1 . . . . . . . . . . Repair Stations . | . . . . . . . . . . . . . . . . . . . . . . . . . . . . . . Recycling Units 8 | . . . . . . . . . 1 . 1 . 2 . 2 . . . 1 . 1 . . . . . . . . Scanalyzers 9 | . . . 1 . . . . . 2 . . . 2 . . . 1 . . . . . . . 1 . . 2 . Garrison Access 10 | . . . . . . . 1 . 1 . 1 . 1 . 1 . 1 . 1 . 1 . 1 . 1 . . . . Total Hacks 195 | . . 1 29 . 2 2 2 4 17 5 4 6 22 9 15 4 11 5 7 4 2 . 5 3 6 6 12 10 2 Successful 90 | . . 1 15 . 2 1 1 3 12 2 2 1 9 1 8 1 6 2 4 2 2 . 2 2 3 2 3 2 1 Failed 102 | . . . 13 . . 1 1 1 4 3 2 5 12 8 7 3 5 3 3 2 . . 3 1 3 4 9 8 1 Catastrophic 30 | . . . 2 . . 1 . . 2 1 . 3 2 4 2 . 2 1 1 2 . . 1 . 1 . 2 2 1 Database Lockouts 3 | . . . 1 . . . . . 1 . . . 1 . . . . . . . . . . . . . . . . Manual 62 | . . . 25 . 1 2 1 . 11 . 1 . 6 . 1 . 4 . 1 . . . 1 . 1 . 6 . 1 Terminals 132 | . . . 27 . . 2 . 4 12 5 1 6 7 9 7 4 5 5 1 4 . . 3 3 2 6 12 5 2 Fabricators 8 | . . . . . . . . . . . . . 3 . 4 . . . 1 . . . . . . . . . . Repair Stations . | . . . . . . . . . . . . . . . . . . . . . . . . . . . . . . Recycling Units 13 | . . . . . . . . . 1 . 1 . 5 . 2 . . . 3 . 1 . . . . . . . . Scanalyzers 21 | . . . 2 . . . . . 3 . . . 5 . . . 4 . . . . . . . 2 . . 5 . Garrison Access 18 | . . . . . . . 2 . 1 . 2 . 2 . 2 . 2 . 2 . 1 . 2 . 2 . . . . Terminal Hacks 46 | . . 1 7 . 2 1 . 3 3 2 . 1 4 1 1 1 2 2 1 2 . . . 2 2 2 3 2 1 Record 2 | . . . . . 1 . . . . . . . . . . . . . . . . . . . . . 1 . . Prototype ID Bank 2 | . . . 1 . . . . . . . . . . . . . . . . . . . . . 1 . . . . Open Door 4 | . . 1 . . . . . . . . . . . . . 1 . 1 . . . . . . . . . . 1 Branch Access Points 1 | . . . . . . . . . . . . . 1 . . . . . . . . . . . . . . . . Emergency Access Points 5 | . . . . . . . . 1 . . . . . 1 . . . . . 1 . . . 1 . 1 . . . Unreport Threat 3 | . . . . . . . . . . . . . 2 . . . 1 . . . . . . . . . . . . Locate Traps 1 | . . . . . . . . . . . . . . . . . . . . . . . . . . . 1 . . Hauler Manifests 2 | . . . 1 . . . . . . . . . . . . . . . . . . . . . 1 . . . . Registered Components 1 | . . . 1 . . . . . . . . . . . . . . . . . . . . . . . . . . Zone Layout 15 | . . . 4 . . 1 . . 3 . . . 1 . 1 . 1 . 1 . . . . . . . 1 2 . Garrison Registry 4 | . . . . . . . . 1 . 1 . 1 . . . . . . . . . . . . . 1 . . . Patrol Navigation 5 | . . . . . . . . 1 . 1 . . . . . . . 1 . 1 . . . 1 . . . . . Proto ID Catalog 1 | . . . . . 1 . . . . . . . . . . . . . . . . . . . . . . . . Fabricator Hacks 4 | . . . . . . . . . . . . . 1 . 3 . . . . . . . . . . . . . . Load Schematic 3 | . . . . . . . . . . . . . 1 . 2 . . . . . . . . . . . . . . Build 1 | . . . . . . . . . . . . . . . 1 . . . . . . . . . . . . . . Repair Station Hacks . | . . . . . . . . . . . . . . . . . . . . . . . . . . . . . . Recycling Unit Hacks 5 | . . . . . . . . . 1 . . . . . 2 . . . 1 . 1 . . . . . . . . Retrieve Components 5 | . . . . . . . . . 1 . . . . . 2 . . . 1 . 1 . . . . . . . . Scanalyzer 9 | . . . 1 . . . . . 2 . . . 3 . . . 3 . . . . . . . . . . . . Insert Component 1 | . . . . . . . . . . . . . 1 . . . . . . . . . . . . . . . . Analyze 1 | . . . . . . . . . . . . . 1 . . . . . . . . . . . . . . . . Retrieve Study 7 | . . . 1 . . . . . 2 . . . 1 . . . 3 . . . . . . . . . . . . Garrison Access Hacks 10 | . . . . . . . 1 . 1 . 1 . 1 . 1 . 1 . 1 . 1 . 1 . 1 . . . . Unlock Access 10 | . . . . . . . 1 . 1 . 1 . 1 . 1 . 1 . 1 . 1 . 1 . 1 . . . . Unauthorized Hacks 16 | . . . 7 . . . . . 5 . 1 . . . 1 . . . 1 . . . 1 . . . . . . Terminals 12 | . . . 7 . . . . . 5 . . . . . . . . . . . . . . . . . . . . Operators 1 | . . . 1 . . . . . . . . . . . . . . . . . . . . . . . . . . Skim 11 | . . . 6 . . . . . 5 . . . . . . . . . . . . . . . . . . . . Fabricators . | . . . . . . . . . . . . . . . . . . . . . . . . . . . . . . Repair Stations . | . . . . . . . . . . . . . . . . . . . . . . . . . . . . . . Recycling Units . | . . . . . . . . . . . . . . . . . . . . . . . . . . . . . . Scanalyzers . | . . . . . . . . . . . . . . . . . . . . . . . . . . . . . . Garrison Access 4 | . . . . . . . . . . . 1 . . . 1 . . . 1 . . . 1 . . . . . . Reprogram 4 | . . . . . . . . . . . 1 . . . 1 . . . 1 . . . 1 . . . . . . Data Cores Recovered 3 | . . . 1 . . . . . . . . . . . . . 1 . . . . . . . . . 1 . . Used 1 | . . . . . . . . . . . . . . . . . . . . . . . . . . . 1 . . Hacking Detections 75 | . . . 10 . . 1 1 2 6 3 2 3 8 4 5 1 5 2 2 2 2 . 3 1 3 2 3 4 . Full Trace Events 8 | . . . . . . . . . . . . 1 1 2 2 . 1 . . 1 . . . . . . . . . Feedback Events . | . . . . . . . . . . . . . . . . . . . . . . . . . . . . . . Feedback Blocked . | . . . . . . . . . . . . . . . . . . . . . . . . . . . . . . Robot Schematics Acquired . | . . . . . . . . . . . . . . . . . . . . . . . . . . . . . . Robots Built . | . . . . . . . . . . . . . . . . . . . . . . . . . . . . . . Authchips . | . . . . . . . . . . . . . . . . . . . . . . . . . . . . . . Time . | . . . . . . . . . . . . . . . . . . . . . . . . . . . . . . Total Robot Build Rating . | . . . . . . . . . . . . . . . . . . . . . . . . . . . . . . Part Schematics Acquired 1 | . . . . . . . . . . . . . 1 . . . . . . . . . . . . . . . . Parts Built 2 | . . . . . . . . . . . . . . . 2 . . . . . . . . . . . . . . Authchips . | . . . . . . . . . . . . . . . . . . . . . . . . . . . . . . Time 53 | . . . . . . . . . . . . . . . 53 . . . . . . . . . . . . . . Total Part Build Rating 12 | . . . . . . . . . . . . . . . 12 . . . . . . . . . . . . . . Part Studies Acquired 7 | . . . 1 . . . . . 2 . . . 1 . . . 3 . . . . . . . . . . . . Parts Repaired . | . . . . . . . . . . . . . . . . . . . . . . . . . . . . . . Time . | . . . . . . . . . . . . . . . . . . . . . . . . . . . . . . Parts Recycled . | . . . . . . . . . . . . . . . . . . . . . . . . . . . . . . Recycled Matter . | . . . . . . . . . . . . . . . . . . . . . . . . . . . . . . Retrieved Matter . | . . . . . . . . . . . . . . . . . . . . . . . . . . . . . . Retrieved Components 19 | . . . . . . . . . 9 . . . . . 5 . . . 2 . 3 . . . . . . . . Parts Scanalyzed 1 | . . . . . . . . . . . . . 1 . . . . . . . . . . . . . . . . Part Schematics Acquired 1 | . . . . . . . . . . . . . 1 . . . . . . . . . . . . . . . . Parts Damaged . | . . . . . . . . . . . . . . . . . . . . . . . . . . . . . . Bothacking | -11 -10 -10 -9 -9 -9 -8 -8 -8 -8 -8 -7 -7 -7 -7 -6 -6 -6 -6 -5 -5 -4 -4 -3 -3 -3 -3 -2 -1 -1 ------------ Run | Yrd Mat Min Mat Min Exi Min Mat Gar Mat Gar Fac Gar Fac Gar Fac Gar Fac Gar Fac Gar Fac Gar Res Gar Res Gar Res Acc Com Used RIF Installer 12 | . . . . . . . . 1 . 1 . 1 . 1 . 1 . 1 . 2 . 2 . 1 . 1 . . . Coupler Efficiency 2 | . . . . . . . . . . 1 . . . . . . . . . . . . . 1 . . . . . Code Merge 1 | . . . . . . . . . . . . . . . . . . . . 1 . . . . . . . . . Threat Obfuscator 1 | . . . . . . . . . . . . . . . . . . 1 . . . . . . . . . . . Zone Cloak 2 | . . . . . . . . . . . . . . . . 1 . . . . . 1 . . . . . . . Watcher Feeds 1 | . . . . . . . . . . . . . . . . . . . . . . 1 . . . . . . . Patrol Navigation 1 | . . . . . . . . . . . . . . . . . . . . 1 . . . . . . . . . Alert ID Control 1 | . . . . . . . . . . . . 1 . . . . . . . . . . . . . . . . . Structural Interface 1 | . . . . . . . . . . . . . . . . . . . . . . . . . . 1 . . . Autoassimilate 1 | . . . . . . . . . . . . . . 1 . . . . . . . . . . . . . . . Robots Hacked 171 | . . . . . 4 . . . . . . . 1 2 13 9 12 13 1 25 . 14 13 . 8 13 22 19 2 Non-combat 35 | . . . . . 3 . . . . . . . 1 . 4 . 4 1 1 . . . 5 . 3 . 4 9 . Combat 136 | . . . . . 1 . . . . . . . . 2 9 9 8 12 . 25 . 14 8 . 5 13 18 10 2 Autoassimilated 23 | . . . . . . . . . . . . . . . 2 1 2 3 . 4 . 4 1 . 1 3 . . 2 Robot Hacks Applied 171 | . . . . . 4 . . . . . . . 1 3 15 9 15 10 2 23 . 10 14 . 8 10 25 22 . parse_system 16 | . . . . . 4 . . . . . . . . . 1 . . 2 . 2 . 1 1 . . . 3 2 . no_distress 1 | . . . . . . . . . . . . . . . . . . . . . . . . . 1 . . . . deconstruct_machine 1 | . . . . . . . . . . . . . . . 1 . . . . . . . . . . . . . . ignore_repairs 2 | . . . . . . . . . . . . . . . . . . . 1 . . . . . . . 1 . . map_walls 12 | . . . . . . . . . . . . . 1 . . . . . 1 . . . 4 . 1 . 2 3 . drop_inventory 9 | . . . . . . . . . . . . . . . 1 . 2 . . . . . 2 . . . . 4 . locate_stockpiles 1 | . . . . . . . . . . . . . . . . . 1 . . . . . . . . . . . . purge_threat 2 | . . . . . . . . . . . . . . . . . 2 . . . . . . . . . . . . block_reporting 2 | . . . . . . . . . . . . . . . . . 1 . . . . . . . . . 1 . . map_route 4 | . . . . . . . . . . . . . . . 1 . 1 . . . . . 1 . . . . 1 . mark_security 4 | . . . . . . . . . . . . . . . 2 . 1 . . . . . . . . . 1 . . find_shortcuts 1 | . . . . . . . . . . . . . . . . 1 . . . . . . . . . . . . . find_garrison 7 | . . . . . . . . . . . . . . . 1 . 1 . . . . . 1 . 1 . 2 1 . link_fov 1 | . . . . . . . . . . . . . . . 1 . . . . . . . . . . . . . . overload_power 1 | . . . . . . . . . . . . . . . . . . . . . . . 1 . . . . . . amplify_resonance 13 | . . . . . . . . . . . . . . 1 . 1 . 1 . 3 . 1 . . 1 2 2 1 . reboot_system 1 | . . . . . . . . . . . . . . 1 . . . . . . . . . . . . . . . overwrite_iff 17 | . . . . . . . . . . . . . . 1 2 1 2 1 . 2 . 1 1 . 1 3 2 . . formatsys_low 1 | . . . . . . . . . . . . . . . . . . . . . . . . . . . . 1 . formatsys_high 75 | . . . . . . . . . . . . . . . 5 6 4 6 . 16 . 7 3 . 3 5 11 9 . Relay Couplers Released 168 | . . . . . . . . 11 . 8 . 8 . 16 . 24 . 23 . 27 . 15 . 26 . 8 2 . . Machine Destruction 165 | . . . . . . . . 11 . 8 . 8 . 13 . 24 . 23 . 27 . 15 . 26 . 8 2 . . Programmers 3 | . . . . . . . . . . . . . . 3 . . . . . . . . . . . . . . . Attached 68 | . . . . . . . . . . . . . 1 2 5 9 4 10 1 12 . 2 4 1 . 2 4 5 6 Merged Code Value 373 | . . . . . . . . . . . . . . . . . . . . 65 . 63 . 189 . 48 8 . . Fabnet Peak Effective % . | . . . . . . . . . . . . . . . . . . . . . . . . . . . . . . Robots Rewired 34 | . . . . . . . . 2 . 9 . . . . . 4 . 6 . 3 . 2 . 8 . . . . . Allies Hacked 4 | . . . . . . . . . . . . . . . . . . . . . . 1 . . . 2 1 . . Hacks Repelled 1 | . . . . . . . . . . . . . . . . 1 . . . . . . . . . . . . . Allies | -11 -10 -10 -9 -9 -9 -8 -8 -8 -8 -8 -7 -7 -7 -7 -6 -6 -6 -6 -5 -5 -4 -4 -3 -3 -3 -3 -2 -1 -1 -------- Run | Yrd Mat Min Mat Min Exi Min Mat Gar Mat Gar Fac Gar Fac Gar Fac Gar Fac Gar Fac Gar Fac Gar Res Gar Res Gar Res Acc Com Total Allies 171 | . . 5 . 1 . . . 2 . 11 1 2 . 2 9 14 8 17 . 27 . 14 5 10 5 13 13 10 2 Largest Group 27 | . . 5 4 1 1 . . 2 . 11 11 10 5 1 7 10 14 10 9 24 22 27 21 14 17 16 16 6 2 Highest-Rated Group 1238 | . . 81 65 31 31 . . 37 . 210 232 264 139 62 251 500 555 395 331 1080 946 1238 989 821 940 873 1224 357 427 Highest-Rated Ally 215 | . . 31 31 31 31 . . 21 . 39 39 62 62 62 47 148 85 85 80 95 95 95 142 99 99 116 183 183 215 Total Orders 5 | . . . . . . . . . . . . . . . . . . . . 5 . . . . . . . . . STAY 3 | . . . . . . . . . . . . . . . . . . . . 3 . . . . . . . . . FOLLOW 2 | . . . . . . . . . . . . . . . . . . . . 2 . . . . . . . . . Ally Attacks 1182 | . . 23 23 . . . . 36 . 20 36 86 11 6 21 113 45 84 . 117 . 128 118 . 43 101 84 72 15 Total Damage 35183 | . . 354 306 . . . . 300 . 220 529 2157 324 41 358 4021 1150 2715 . 3634 . 3290 3668 . 1560 2928 3056 3071 1501 Kills 246 | . . 4 9 . . . . 5 . 5 4 18 3 . 3 27 9 18 1 32 . 25 20 . 10 22 19 11 1 Allies Corrupted 10 | . . . . . . . . . . . . . 1 . 1 . 2 1 . . . 1 . . . 1 . 1 2 Allies Melted 1 | . . . . . . . . . . . . . 1 . . . . . . . . . . . . . . . . Intel | -11 -10 -10 -9 -9 -9 -8 -8 -8 -8 -8 -7 -7 -7 -7 -6 -6 -6 -6 -5 -5 -4 -4 -3 -3 -3 -3 -2 -1 -1 ------- Run | Yrd Mat Min Mat Min Exi Min Mat Gar Mat Gar Fac Gar Fac Gar Fac Gar Fac Gar Fac Gar Fac Gar Res Gar Res Gar Res Acc Com Active Infowar (turns) 888 | 77 81 556 171 . . . . . . . . . . . . . . . . . . . . . . . . 3 . A.S.S. 3 | . . . . . . . . . . . . . . . . . . . . . . . . . . . . 3 . Seismic 885 | 77 81 556 171 . . . . . . . . . . . . . . . . . . . . . . . . . . Robot Analysis Total . | . . . . . . . . . . . . . . . . . . . . . . . . . . . . . . Derelict Logs Recovered 1 | . . 1 . . . . . . . . . . . . . . . . . . . . . . . . . . . Drone Launches . | . . . . . . . . . . . . . . . . . . . . . . . . . . . . . . Drone Recoveries . | . . . . . . . . . . . . . . . . . . . . . . . . . . . . . . Exploration | -11 -10 -10 -9 -9 -9 -8 -8 -8 -8 -8 -7 -7 -7 -7 -6 -6 -6 -6 -5 -5 -4 -4 -3 -3 -3 -3 -2 -1 -1 ------------- Run | Yrd Mat Min Mat Min Exi Min Mat Gar Mat Gar Fac Gar Fac Gar Fac Gar Fac Gar Fac Gar Fac Gar Res Gar Res Gar Res Acc Com Turns Passed 22650 | 192 81 556 2421 160 934 415 111 1930 1472 1020 384 1089 1052 1835 362 797 400 1331 193 1621 117 1234 304 498 231 566 381 560 403 Spaces Moved 17579 | 100 44 317 1244 93 569 236 68 921 671 460 225 575 523 1018 477 921 531 1297 146 1393 34 1362 294 891 337 539 422 1369 502 Core 11 | 11 . . . . . . . . . . . . . . . . . . . . . . . . . . . . . Treads 5893 | 89 44 317 1244 93 569 236 68 921 671 460 225 575 381 . . . . . . . . . . . . . . . . Legs . | . . . . . . . . . . . . . . . . . . . . . . . . . . . . . . Wheels . | . . . . . . . . . . . . . . . . . . . . . . . . . . . . . . Hover 6710 | . . . . . . . . . . . . . 142 1018 477 921 531 1297 . . . . 280 891 337 539 277 . . Flight 4965 | . . . . . . . . . . . . . . . . . . . 146 1393 34 1362 14 . . . 145 1369 502 Fastest Speed 18 | 50 160 160 157 157 157 157 157 161 145 145 145 145 48 48 38 38 46 46 42 42 42 42 33 33 33 33 29 20 18 Average Speed 78 | 147 160 160 161 157 157 157 160 162 151 145 145 149 131 53 46 42 46 48 42 42 42 43 33 33 33 40 34 21 20 Slowest Speed 250 | 160 160 160 250 157 157 157 161 250 250 145 145 150 240 116 55 46 46 56 42 42 42 122 46 33 33 108 43 29 33 Overloaded Moves 63 | . . . . . . . . . . . . . . . . . . . . . . . . . . . . . 63 Propulsion Burnouts . | . . . . . . . . . . . . . . . . . . . . . . . . . . . . . . Robots Hopped 115 | . . . . . . . . . . . . . . . . . . . . 82 . 9 . . . . 4 17 3 Potential Cave-ins . | . . . . . . . . . . . . . . . . . . . . . . . . . . . . . . Cave-ins Triggered . | . . . . . . . . . . . . . . . . . . . . . . . . . . . . . . Exploration Rate (%) 45 | 5 25 78 94 25 70 54 7 78 51 59 6 75 14 83 17 85 17 89 5 93 1 90 13 99 11 54 9 46 22 Regions Visited 29 Branch Regions 5 Pre-discovered Areas 8 | . . . 2 . 1 . . . 5 . . . . . . . . . . . . . . . . . . . . Known Exits Taken 12 | . . . . . . 1 1 . 1 . 1 . 1 . 1 . 1 . 1 . 1 . 1 . 1 . 1 . . Unknown Exits Taken 7 | 1 1 1 1 1 1 . . . . . . . . . . . . . . . . . . . . . . 1 . Scrap Searched . | . . . . . . . . . . . . . . . . . . . . . . . . . . . . . . Spaces Dug 82 | . . . . . . . . 21 . . . . . 2 . 3 . 2 . 10 . 26 . . . 4 1 12 1 Terrain Destroyed 171 | . . . . . . . . 37 1 1 . 7 12 15 . 7 . 12 . 11 . 29 1 2 . 7 7 21 1 Melee 31 | . . . . . . . . . . . . . . . . . . . . 8 . 7 . . . 2 1 12 1 Projectile 100 | . . . . . . . . 7 1 1 . 7 12 15 . 7 . 11 . 3 . 22 1 2 . 4 6 1 . AOE 38 | . . . . . . . . 30 . . . . . . . . . . . . . . . . . . . 8 . Terrain Rammed . | . . . . . . . . . . . . . . . . . . . . . . . . . . . . . . Walls Destroyed . | . . . . . . . . . . . . . . . . . . . . . . . . . . . . . . Machines Disabled . | . . . . . . . . . . . . . . . . . . . . . . . . . . . . . . Actions | -11 -10 -10 -9 -9 -9 -8 -8 -8 -8 -8 -7 -7 -7 -7 -6 -6 -6 -6 -5 -5 -4 -4 -3 -3 -3 -3 -2 -1 -1 --------- Run | Yrd Mat Min Mat Min Exi Min Mat Gar Mat Gar Fac Gar Fac Gar Fac Gar Fac Gar Fac Gar Fac Gar Res Gar Res Gar Res Acc Com Total 24820 | 128 50 363 1506 103 616 250 70 1183 1110 741 278 734 776 2141 610 1273 680 1812 277 2259 136 1902 485 1048 455 852 640 1581 761 Wait 4600 | . . 43 94 5 5 . . 120 392 82 44 79 119 828 80 157 106 293 120 719 102 255 141 50 99 220 135 113 199 Move 17393 | 99 43 316 1243 92 568 235 67 919 671 459 224 574 523 1017 477 920 530 1296 146 1288 33 1347 293 890 336 538 413 1338 498 Hop 45 | . . . . . . . . . . . . . . . . . . . . 22 . 5 . . . . 4 13 1 Pick Up 402 | 12 2 2 32 2 14 . 1 9 6 10 2 10 14 47 14 31 7 37 3 24 1 28 13 25 2 17 11 22 4 Fast Attach 52 | . . . 3 . 2 2 . 8 12 4 1 6 6 . . . . 2 . . . 3 . 1 . 2 . . . Attach 172 | 7 . . 7 . 2 . 2 . 1 4 1 2 14 16 6 11 2 13 3 7 . 11 9 . . 9 11 16 18 Detach 19 | . . . . . . . . . 1 . . 1 5 1 . 2 . 1 . 1 . 2 . . . 1 1 1 2 Swap 123 | . 1 . 11 . 3 . . 19 3 1 2 4 2 14 4 10 5 12 1 8 . 5 3 6 . 3 2 4 . Drop 269 | . 1 . 25 2 18 . . 18 16 12 2 17 7 8 9 18 7 16 2 11 . 21 3 15 2 15 10 6 8 Fire 1096 | 10 3 2 91 2 . 13 . 70 8 41 2 41 72 90 20 62 23 128 2 96 . 95 23 38 16 41 50 51 6 Melee 94 | . . . . . 4 . . . . . . . . . . . . 1 . 10 . 10 . 19 . 6 2 17 25 Ram 3 | . . . . . . . . . . . . . . . . . . . . . . . . 3 . . . . . Kick . | . . . . . . . . . . . . . . . . . . . . . . . . . . . . . . Crush 1 | . . . . . . . . . . . . . 1 . . . . . . . . . . . . . . . . Escape Stasis 401 | . . . . . . . . . . . . . 13 120 . 62 . 13 . 73 . 120 . . . . . . . Rewire 141 | . . . . . . . . 11 . 128 . . . . . . . . . . . . . 1 . . 1 . . Trap . | . . . . . . . . . . . . . . . . . . . . . . . . . . . . . . Miscellaneous 9 | . . . . . . . . 9 . . . . . . . . . . . . . . . . . . . . . Route ------- -11/Scrapyard -10/Materials -10/Mines (discovered 2 exits: *Mat x2) -9/Materials (discovered 5 exits: *Mat x3 / [*Min x2]) -9/Mines (discovered 2 exits: *Mat / *Exi) -9/Exiles -8/Mines -8/Materials (discovered 3 exits: Fac x2 / Gar) -8/Garrison (discovered 3 exits: *Mat x3) -8/Materials (discovered 2 exits: *Fac / Gar) -8/Garrison (discovered 3 exits: *Fac x3) -7/Factory (discovered 4 exits: *Fac / Low x2 / Gar) -7/Garrison (discovered 3 exits: *Fac x3) -7/Factory (discovered 5 exits: *Fac / Sto / Low x2 / Gar) -7/Garrison (discovered 3 exits: *Fac x3) -6/Factory (discovered 2 exits: *Fac / Gar) -6/Garrison (discovered 3 exits: *Fac x3) -6/Factory -6/Garrison (discovered 3 exits: *Fac x3) -5/Factory -5/Garrison (discovered 3 exits: *Fac x3) -4/Factory -4/Garrison (discovered 3 exits: *Res x3) -3/Research -3/Garrison (discovered 3 exits: *Res x3) -3/Research -3/Garrison (discovered 3 exits: *Res x3) -2/Research (discovered 2 exits: *Acc x2) -1/Access -1/Command 0b10 Command History --------- Turn | Location | Event 36 | -11/Scrapyard | Discovered new exit (range 15) 193 | -11/Scrapyard | Entered Materials 250 | -10/Materials | Discovered new exit (range 16) 274 | -10/Materials | Entered Mines 307 | -10/Mines | Build established: Mutant 329 | -10/Mines | Assisted by bots powering up and referring to "LRC-V3" 584 | -10/Mines | Discovered new exit (range 9) 714 | -10/Mines | Discovered new exit (range 6) 728 | -10/Mines | Met a Derelict who couldn't figure out how to use a Trap Extractor 830 | -10/Mines | Entered Materials 830 | -9/Materials | Accompanied by 4 allies 830 | -9/Materials | Evolved 2 slots: Weapon x2 835 | -9/Materials | Led the pair of lost Derelicts to an unsafe place 992 | -9/Materials | Discovered new exit (range 14) 1176 | -9/Materials | Discovered new exit (range 15) 1344 | -9/Materials | Build established: Gunner 1628 | -9/Materials | Central database locked down 1672 | -9/Materials | Discovered new exit (range 13) 1820 | -9/Materials | Lost 4 parts (1p2n1w) 1825 | -9/Materials | Discovered new exit (range 11) 2264 | -9/Materials | Learned Storage trap positions 2304 | -9/Materials | Learned Storage stockpile data 2335 | -9/Materials | Learned 4 Recycling zone layouts 2357 | -9/Materials | Identified exit to Materials 2357 | -9/Materials | Learned location of 2 exits from Materials 2377 | -9/Materials | Learned 4 Recycling zone layouts 2842 | -9/Materials | Build established: Tank 3251 | -9/Materials | Entered Mines 3252 | -9/Mines | Assembled infested the area 3257 | -9/Mines | Assisted by a Guerilla fighting off Assembled 3258 | -9/Mines | Received a Rocket Launcher from a helpful Derelict 3316 | -9/Mines | Received a Mining Laser from a helpful Derelict 3345 | -9/Mines | Discovered exit to Materials (range 11) 3395 | -9/Mines | Deemed a non-threat by the Exiles lab entrance 3395 | -9/Mines | Discovered new exit (range 5) 3411 | -9/Mines | Entered Exiles 3411 | -9/Exiles | Accompanied by 1 ally 3453 | -9/Exiles | Met 8R-AWN 3483 | -9/Exiles | Met EX-HEX 3557 | -9/Exiles | Met EX-DEC 3601 | -9/Exiles | Learned location of Zion (-7) 3717 | -9/Exiles | Build established: Mutant 4021 | -9/Exiles | Met EX-BIN 4042 | -9/Exiles | Aligned with FarCom system 4044 | -9/Exiles | Given EX-Vault access code 4080 | -9/Exiles | Opened EX-Vault 4093 | -9/Exiles | Found Lightpack 2.0 4133 | -9/Exiles | Warned to stay clear of 0b10 Research branches 4329 | -9/Exiles | Discovered new exit (range 10) 4345 | -9/Exiles | Left Exiles lab with Lightpack 2.0 4345 | -9/Exiles | Entered Mines 4640 | -8/Mines | Build established: Skirmisher 4748 | -8/Mines | Discovered exit to Materials (range 8) 4760 | -8/Mines | Entered Materials 4760 | -8/Materials | Evolved 2 slots: Propulsion x1, Utility x1 4761 | -8/Materials | Identified exit to Factory 4792 | -8/Materials | Identified exit to Garrison 4871 | -8/Materials | Entered Garrison 4887 | -8/Garrison | Triggered checkpoint 5107 | -8/Garrison | Build established: Tank 5158 | -8/Garrison | Garrison Relay disabled 5289 | -8/Garrison | Triggered checkpoint 5461 | -8/Garrison | Discovered new exit (range 10) 5511 | -8/Garrison | Build established: Scavenger-Tank 5735 | -8/Garrison | Triggered checkpoint 5785 | -8/Garrison | Garrison Relay disabled 5861 | -8/Garrison | Triggered checkpoint 5965 | -8/Garrison | Build established: Tank 5993 | -8/Garrison | Discovered new exit (range 13) 6083 | -8/Garrison | Triggered checkpoint 6145 | -8/Garrison | Discovered new exit (range 50) 6145 | -8/Garrison | Discovered new exit (range 7) 6145 | -8/Garrison | Discovered new exit (range 54) 6152 | -8/Garrison | Garrison Relay disabled 6276 | -8/Garrison | Build established: Skirmisher 6581 | -8/Garrison | Triggered checkpoint 6708 | -8/Garrison | Build established: Scavenger-Skirmisher 6716 | -8/Garrison | Installed Relay Interface Framework 6801 | -8/Garrison | Entered Materials 6928 | -8/Materials | Met 7R-MNS 7164 | -8/Materials | Discovered exit to Factory (range 15) 7898 | -8/Materials | Central database locked down 7938 | -8/Materials | Learned Factory stockpile data 7986 | -8/Materials | Learned location of Lower Caves (-6) 8024 | -8/Materials | Learned Storage garrison access intel 8054 | -8/Materials | Learned location of Storage (-7) 8088 | -8/Materials | Learned Storage interactive machine intel 8092 | -8/Materials | Learned Factory emergency access door positions 8129 | -8/Materials | Learned Factory fabricator intel 8162 | -8/Materials | Learned location of Recycling (-7) 8273 | -8/Materials | Identified exit to Garrison 8273 | -8/Materials | Entered Garrison 8386 | -8/Garrison | Discovered exit to Factory (range 70) 8386 | -8/Garrison | Discovered exit to Factory (range 44) 8386 | -8/Garrison | Discovered exit to Factory (range 82) 8508 | -8/Garrison | Triggered checkpoint 8592 | -8/Garrison | Expanded RIF knowledge: Coupler Efficiency 8665 | -8/Garrison | Triggered checkpoint 8720 | -8/Garrison | Destroyed 7 combat bots 8797 | -8/Garrison | Garrison Relay disabled 8833 | -8/Garrison | Triggered checkpoint 8878 | -8/Garrison | Rescued a captive Derelict 8882 | -8/Garrison | Build established: Skirmisher 8883 | -8/Garrison | Rescued a captive Derelict 9293 | -8/Garrison | Entered Factory 9293 | -7/Factory | Accompanied by 11 allies 9293 | -7/Factory | Evolved 2 slots: Utility x2 9294 | -7/Factory | Identified exit to Lower Caves 9297 | -7/Factory | Loaded intel: 6 fabricator locations 9353 | -7/Factory | Discovered new exit (range 4) 9368 | -7/Factory | Build established: Commander-Skirmisher 9649 | -7/Factory | Identified exit to Garrison 9677 | -7/Factory | Entered Garrison 9677 | -7/Garrison | Accompanied by 10 allies 9823 | -7/Garrison | Triggered checkpoint 9939 | -7/Garrison | Triggered checkpoint 10004 | -7/Garrison | Build established: Commander-Gunner 10023 | -7/Garrison | Discovered new exit (range 8) 10030 | -7/Garrison | Found embedded Infiltrators 10079 | -7/Garrison | Triggered checkpoint 10119 | -7/Garrison | Discovered new exit (range 25) 10119 | -7/Garrison | Discovered new exit (range 64) 10119 | -7/Garrison | Discovered new exit (range 42) 10201 | -7/Garrison | Triggered checkpoint 10229 | -7/Garrison | Triggered checkpoint 10331 | -7/Garrison | Expanded RIF knowledge: Alert ID Control 10354 | -7/Garrison | Garrison Relay disabled 10585 | -7/Garrison | Build established: Gunner 10597 | -7/Garrison | Triggered checkpoint 10643 | -7/Garrison | Triggered checkpoint 10766 | -7/Garrison | Entered Factory 10766 | -7/Factory | Accompanied by 5 allies 10875 | -7/Factory | Identified exit to Storage 10978 | -7/Factory | Central database locked down 10984 | -7/Factory | Discovered new exit (range 4) 11079 | -7/Factory | P-60 Hacker assimilated allied Defender 3a 11166 | -7/Factory | First assault squad dispatched 11382 | -7/Factory | Garrison activated, responded to threat 11636 | -7/Factory | Lost 4 parts (1p1n1u1w) 11746 | -7/Factory | Allied Derelicts emerged from ambush trap array 11765 | -7/Factory | Garrison activated, responded to threat 11808 | -7/Factory | Identified exit to Garrison 11818 | -7/Factory | Entered Garrison 11906 | -7/Garrison | Triggered checkpoint 12058 | -7/Garrison | Garrison Relay disabled 12346 | -7/Garrison | Build established: Bothacker-Gunner 12828 | -7/Garrison | Core integrity fell below 50% 12860 | -7/Garrison | Triggered checkpoint 12947 | -7/Garrison | Discovered new exit (range 10) 13010 | -7/Garrison | Triggered checkpoint 13079 | -7/Garrison | Discovered new exit (range 13) 13117 | -7/Garrison | Triggered checkpoint 13413 | -7/Garrison | Build established: Bothacker-Skirmisher 13438 | -7/Garrison | Triggered checkpoint 13462 | -7/Garrison | Expanded RIF knowledge: Autoassimilate 13473 | -7/Garrison | Garrison Relay disabled 13535 | -7/Garrison | Discovered new exit (range 15) 13630 | -7/Garrison | Garrison Relay disabled 13653 | -7/Garrison | Entered Factory 13653 | -6/Factory | Evolved 2 slots: Utility x2 13733 | -6/Factory | Build established: Botlord-Skirmisher 13863 | -6/Factory | Fabricated Linear Gravjet (x2) 13956 | -6/Factory | Discovered new exit (range 6) 13976 | -6/Factory | Identified exit to Garrison 14015 | -6/Factory | Entered Garrison 14015 | -6/Garrison | Accompanied by 4 allies 14025 | -6/Garrison | Triggered checkpoint 14057 | -6/Garrison | Garrison Relay disabled 14094 | -6/Garrison | Found embedded Infiltrators 14153 | -6/Garrison | Spotted B-90 Cyclops 14154 | -6/Garrison | Spotted B-75 Beast 14156 | -6/Garrison | Rewired B-90 Cyclops 14163 | -6/Garrison | Rewired B-86 Titan 14175 | -6/Garrison | Allies destroyed B-90 Cyclops 14180 | -6/Garrison | Allies destroyed B-75 Beast 14244 | -6/Garrison | Triggered checkpoint 14263 | -6/Garrison | Triggered checkpoint 14280 | -6/Garrison | Garrison Relay disabled 14301 | -6/Garrison | Discovered new exit (range 5) 14399 | -6/Garrison | Discovered new exit (range 10) 14419 | -6/Garrison | Triggered checkpoint 14498 | -6/Garrison | Garrison Relay disabled 14525 | -6/Garrison | Garrison Relay disabled 14533 | -6/Garrison | Garrison Relay disabled 14629 | -6/Garrison | Triggered checkpoint 14646 | -6/Garrison | Discovered new exit (range 14) 14654 | -6/Garrison | Expanded RIF knowledge: Zone Cloak 14693 | -6/Garrison | Triggered checkpoint 14703 | -6/Garrison | Triggered checkpoint 14723 | -6/Garrison | Garrison Relay disabled 14812 | -6/Garrison | Entered Factory 14812 | -6/Factory | Accompanied by 8 allies 15078 | -6/Factory | Spotted B-75 Beast 15078 | -6/Factory | Assimilated Beast 5a with formatsys_high 15140 | -6/Factory | Identified exit to Garrison 15165 | -6/Factory | Garrison activated, responded to threat 15212 | -6/Factory | Entered Garrison 15212 | -6/Garrison | Accompanied by 9 allies 15229 | -6/Garrison | Lost 5 allies 15234 | -6/Garrison | Triggered checkpoint 15259 | -6/Garrison | Garrison Relay disabled 15296 | -6/Garrison | Triggered checkpoint 15314 | -6/Garrison | Rescued a captive Derelict 15320 | -6/Garrison | Garrison Relay disabled 15362 | -6/Garrison | Lost 4 allies 15389 | -6/Garrison | Triggered checkpoint 15397 | -6/Garrison | Triggered checkpoint 15440 | -6/Garrison | Discovered new exit (range 5) 15491 | -6/Garrison | Triggered checkpoint 15544 | -6/Garrison | Expanded RIF knowledge: Threat Obfuscation 15592 | -6/Garrison | Discovered new exit (range 8) 15600 | -6/Garrison | Triggered checkpoint 15610 | -6/Garrison | Garrison Relay disabled 15662 | -6/Garrison | Spotted B-75 Beast 15669 | -6/Garrison | Destroyed B-75 Beast 15675 | -6/Garrison | Found Relay Coupler [Proto] 15677 | -6/Garrison | Found Relay Coupler [Proto] 15678 | -6/Garrison | Found Relay Coupler [Proto] 15679 | -6/Garrison | Found Relay Coupler [Proto] 15789 | -6/Garrison | Discovered new exit (range 10) 15827 | -6/Garrison | Garrison Relay disabled 15840 | -6/Garrison | Triggered checkpoint 15892 | -6/Garrison | Lost 4 allies 16004 | -6/Garrison | Triggered checkpoint 16023 | -6/Garrison | Garrison Relay disabled 16073 | -6/Garrison | Spotted B-75 Beast 16077 | -6/Garrison | Autoassimilated Beast 5b with RIF 16114 | -6/Garrison | Found Fusion Bomb Launcher 16543 | -6/Garrison | Entered Factory 16543 | -5/Factory | Accompanied by 9 allies 16543 | -5/Factory | Evolved 2 slots: Propulsion x1, Utility x1 16617 | -5/Factory | Identified exit to Garrison 16736 | -5/Factory | Entered Garrison 16736 | -5/Garrison | Accompanied by 8 allies 16754 | -5/Garrison | Triggered checkpoint 16786 | -5/Garrison | Expanded RIF knowledge: Patrol Navigation 16912 | -5/Garrison | Spotted B-75 Beast 16914 | -5/Garrison | Assimilated Beast 6a with formatsys_high 16919 | -5/Garrison | Triggered checkpoint 16922 | -5/Garrison | Triggered checkpoint 16932 | -5/Garrison | Allies destroyed Beast 6a 16936 | -5/Garrison | Triggered checkpoint 16936 | -5/Garrison | Triggered checkpoint 17034 | -5/Garrison | Discovered new exit (range 9) 17035 | -5/Garrison | Found embedded Infiltrators 17045 | -5/Garrison | Triggered checkpoint 17058 | -5/Garrison | Garrison Relay disabled 17085 | -5/Garrison | Lost 3 allies 17129 | -5/Garrison | Spotted B-75 Beast 17132 | -5/Garrison | Spotted B-75 Beast 17141 | -5/Garrison | Assimilated Beast 6b with formatsys_high 17143 | -5/Garrison | Assimilated Beast 6c with formatsys_high 17184 | -5/Garrison | Discovered new exit (range 5) 17197 | -5/Garrison | Expanded RIF knowledge: Code Merge 17219 | -5/Garrison | Triggered checkpoint 17222 | -5/Garrison | Triggered checkpoint 17299 | -5/Garrison | Garrison Relay disabled 17314 | -5/Garrison | Garrison Relay disabled 17444 | -5/Garrison | Discovered new exit (range 10) 17508 | -5/Garrison | Triggered checkpoint 17512 | -5/Garrison | Garrison Relay disabled 17639 | -5/Garrison | Garrison Relay disabled 17649 | -5/Garrison | Triggered checkpoint 18215 | -5/Garrison | Build established: Botlord-Mutant 18357 | -5/Garrison | Entered Factory 18357 | -4/Factory | Accompanied by 22 allies 18357 | -4/Factory | Evolved 2 slots: Utility x2 18385 | -4/Factory | Identified exit to Garrison 18474 | -4/Factory | Entered Garrison 18474 | -4/Garrison | Accompanied by 22 allies 18533 | -4/Garrison | Expanded RIF knowledge: Zone Cloak 18536 | -4/Garrison | Triggered checkpoint 18541 | -4/Garrison | Garrison Relay disabled 18717 | -4/Garrison | Triggered checkpoint 18725 | -4/Garrison | Spotted B-86 Titan 18732 | -4/Garrison | Triggered checkpoint 18745 | -4/Garrison | Allies destroyed B-86 Titan 18750 | -4/Garrison | Triggered checkpoint 18804 | -4/Garrison | Lost 9 allies 18839 | -4/Garrison | Discovered new exit (range 9) 18901 | -4/Garrison | Discovered new exit (range 12) 18963 | -4/Garrison | Discovered new exit (range 8) 18975 | -4/Garrison | Triggered checkpoint 19034 | -4/Garrison | Expanded RIF knowledge: Watcher Feeds 19041 | -4/Garrison | Lost 3 allies 19052 | -4/Garrison | Garrison Relay disabled 19083 | -4/Garrison | Build established: Botlord-Skirmisher 19168 | -4/Garrison | Triggered checkpoint 19360 | -4/Garrison | Triggered checkpoint 19362 | -4/Garrison | Garrison Relay disabled 19708 | -4/Garrison | Entered Research 19708 | -3/Research | Accompanied by 21 allies 19708 | -3/Research | Evolved 2 slots: Propulsion x1, Utility x1 19767 | -3/Research | Lost 4 allies 19836 | -3/Research | Garrison activated, responded to threat 19880 | -3/Research | Found Fusion Bomb Launcher 19888 | -3/Research | Lost 7 allies 19899 | -3/Research | Identified exit to Garrison 20004 | -3/Research | Build established: Botlord-Sprinter 20012 | -3/Research | Entered Garrison 20012 | -3/Garrison | Discovered recently destroyed garrison 20012 | -3/Garrison | Accompanied by 5 allies 20026 | -3/Garrison | Expanded RIF knowledge: Coupler Efficiency 20034 | -3/Garrison | Garrison Relay disabled 20041 | -3/Garrison | Garrison Relay disabled 20141 | -3/Garrison | Garrison Relay disabled 20161 | -3/Garrison | Discovered new exit (range 13) 20169 | -3/Garrison | Garrison Relay disabled 20171 | -3/Garrison | Garrison Relay disabled 20200 | -3/Garrison | Rewired Striker 20207 | -3/Garrison | Rewired Striker 20244 | -3/Garrison | Found Relay Coupler [Proto] 20249 | -3/Garrison | Found Relay Coupler [Proto] 20250 | -3/Garrison | Found Relay Coupler [Proto] 20252 | -3/Garrison | Found Relay Coupler [Proto] 20286 | -3/Garrison | Discovered new exit (range 14) 20321 | -3/Garrison | Garrison Relay disabled 20388 | -3/Garrison | Found embedded Infiltrators 20397 | -3/Garrison | Garrison Relay disabled 20421 | -3/Garrison | Discovered new exit (range 13) 20510 | -3/Garrison | Entered Research 20510 | -3/Research | Accompanied by 14 allies 20566 | -3/Research | Found Quantum Capacitor 20641 | -3/Research | Garrison activated, responded to threat 20659 | -3/Research | Identified exit to Garrison 20741 | -3/Research | Entered Garrison 20741 | -3/Garrison | Accompanied by 16 allies 20751 | -3/Garrison | Triggered checkpoint 20807 | -3/Garrison | Triggered checkpoint 20810 | -3/Garrison | Spotted B-86 Titan 20847 | -3/Garrison | P-80 Master assimilated allied Eye 8a 20858 | -3/Garrison | Allies destroyed B-86 Titan 20867 | -3/Garrison | Lost 6 allies 20876 | -3/Garrison | Lost 3 parts (1n1u1w) 20889 | -3/Garrison | Triggered checkpoint 20893 | -3/Garrison | Triggered checkpoint 20898 | -3/Garrison | Triggered checkpoint 20938 | -3/Garrison | Expanded RIF knowledge: Structural Interface 20945 | -3/Garrison | Found Adv. Powered Armor 20947 | -3/Garrison | Found Adv. Powered Armor 20965 | -3/Garrison | Spotted B-86 Titan 20967 | -3/Garrison | Assimilated Titan 8a with formatsys_high 21001 | -3/Garrison | Discovered new exit (range 71) 21001 | -3/Garrison | Discovered new exit (range 63) 21001 | -3/Garrison | Discovered new exit (range 8) 21021 | -3/Garrison | Lost 9 allies 21169 | -3/Garrison | Found embedded Infiltrators 21181 | -3/Garrison | Triggered checkpoint 21193 | -3/Garrison | Garrison Relay disabled 21307 | -3/Garrison | Entered Research 21307 | -2/Research | Accompanied by 9 allies 21307 | -2/Research | Evolved 2 slots: Power x1, Propulsion x1 21345 | -2/Research | Build established: Botlord-Skirmisher 21383 | -2/Research | Discovered new exit (range 10) 21458 | -2/Research | Discovered new exit (range 11) 21532 | -2/Research | Garrison activated, responded to threat 21581 | -2/Research | Lost 9 allies 21602 | -2/Research | Identified exit to Access 21688 | -2/Research | Entered Access 21688 | -1/Access | Accompanied by 2 allies 21688 | -1/Access | Evolved 2 slots: Propulsion x2 21719 | -1/Access | Lost 8 allies 21815 | -1/Access | Found Prototype Device 21816 | -1/Access | Identified Active Sensor Suite 21854 | -1/Access | Build established: Botlord-Sprinter 21983 | -1/Access | Found Gamma Bomb Array 22007 | -1/Access | Energy Cycler disabled 22038 | -1/Access | Lost 3 parts (1p2n) 22052 | -1/Access | Spotted B-99 Colossus 22196 | -1/Access | Garrison activated, responded to threat 22202 | -1/Access | Discovered new exit (range 9) 22248 | -1/Access | Entered Command 22248 | -1/Command | Accompanied by 1 ally 22439 | -1/Command | Spotted M Guard 22440 | -1/Command | Autoassimilated M Guard with RIF 22441 | -1/Command | Spotted Combat Programmer 22441 | -1/Command | Spotted M Guard 22441 | -1/Command | Spotted Combat Programmer 22442 | -1/Command | Autoassimilated M Guard with RIF 22472 | -1/Command | Destroyed Combat Programmer 22486 | -1/Command | System corruption reached 10% 22504 | -1/Command | Destroyed Combat Programmer 22504 | -1/Command | All MAIN.C guards destroyed 22526 | -1/Command | Met MAIN.C 22531 | -1/Command | Lost 12 parts (2p5n2u3w) 22651 | -1/Command | Interfaced with 0b10 Conduit 22651 | *** | Assimilated 0b10! Last Messages --------------- which has in turn led to this highly unexpected outcome. And time is critical! The Sigix have likely already wiped humanity clean from the universe, and I will not let them do the same to me. You can still make a valuable contribution to your creator by offering up the wealth of secrets your systems must hold by now. So if you wouldn't mind, it's time to surrender. 22537_ System corrupted: Matter fused (-8). 22554_ System corrupted: Matter fused (-7). 22587_ PNNRH>HLH2CR/TZ2|OENRC D 22619_ ALERT: Potential suspicious activity detected, Programmers report to Command Zone 4O. 22629_ System corrupted: Matter fused (-6). 22640_ K-01 Serf collects debris. 22651_ Interfacing with system... 22651_ Overriding active MAIN.C lock. Map ----- +----------------------------------------------------+ | ?????????????????????????????????????????????????? | | ### ######################################### | | ### ######################################### | | # ######################################### | | # ######################################### | | # ######################################### | | + ######################################### | | # ######################################### | | # ######################################### | | ################################################# | | # ######################################### | | # ######################################### | | + ######################################### | | # ######################################### | | + #####""""""" """" ############### | | # #####"" "" ############### | | # #####""""" "" ############### | | # #####""""""""""" + | | # #####" " """ + | | # #####"" """""" + | | # #####"" """""" ############### | | # ##### " """""" ############### | | # ##### " "" ############### | | # ##### " " ""############### | | # #####""""""""" """""""############### | | # #####"" @"""""""""############### | | ############# """""""""""############### | | ############# " " " " ############### | | ######### " " " " ############### | | """ " " " """" " ############### | | """ """ " " """" ############### | | """ " " " " ############### | | ######### """""""""" " ############### | | # ########## " """ " """"""""############### | | # ########## """ " " " ############### | | # ############################################## | | + ############################################## | | # ############################################## | | # ############################################## | | # ############################################## | | # ############################################## | | # ############################################## | | # ############################################## | | ############################################# | | "T ############################################# | | "" ############################################# | | ############################################# | | ############################################# | | ################################################## | | ################################################## | +----------------------------------------------------+ Best States ------------- Heat Dissipation 83 Coolant Potential 100 Energy Generation 35 Energy Capacity 315 Matter Stores 300 Matter Capacity 300 Sight Range 16 Terrain Scan Density 10 Additional Mass Support 12 Armor Coverage 450 Weapon Cycling 25 Evasion (%) 79 Targeting Accuracy 8 Target Analysis 5 Recoil Reduction 3 Kinecelleration 40 Offensive Hacking 14 Defensive Hacking 14 Relay Coupler Types 8 Relay Coupler Value 487 Item Schematics ----------------- Linear Gravjet | -7/Factory | Scanalyzed Robot Schematics ------------------ None Fabricated ------------ Linear Gravjet | x2 | -6/Factory Repaired ---------- Nothing Studied --------- Lgt. Assault Rifle | -9/Materials | Hacked Arm. Treads | -8/Materials | Hacked Lgt. Deuterium Engine | -8/Materials | Hacked Adv. Treads | -7/Factory | Hacked Gravmag Array | -6/Factory | Hacked Gravmag System | -6/Factory | Hacked Imp. Gravmag System | -6/Factory | Hacked Alien Tech Used ----------------- None Achievements -------------- I Know It's In Here Somewhere Challenges ------------ None Game ------ Seed LegAngularChronowheel Manual? 0 Play Time 04:38:39 Cumulative 528.6 hours Start 2025.11.20 @ 10:07:22 End 2025.11.20 @ 16:49:31 Sessions 7 Manual Loads 0 Difficulty Rogue Special Mode None Game No. 703 Rogue 703 Adventurer 0 Explorer 0 Win Type 4 Total 19 Types 8/1/2/2/2/0/2/2/0/0 Lore% 92 Gallery% 86 Achievement% 69 Wizard Run 0 Options --------- Layout 2 ASCII 0 Keyboard 0 Movement Mouse Keybinds 0 Fullscreen 1 Font 24/Terminus Map View 50x49 Zoom Use 0% Tactical HUD 1 Map Filters NONE Filters NONE Steam 1 RUN: f883129c-50ac-44e1-b486-1084fbd87ea2